bitfinex/quotes_SOLUSD_20240614
["timestamp","ask_amount","ask_price","bid_price","bid_amount"]
[1718391213189,13.0809,141.43,141.38,2.6169]
[1718391213510,2.6163,141.42,141.38,2.617]
[1718391213690,2.6163,141.42,141.37,26.1711]
[1718391213895,7.8489,141.42,141.37,23.5541]
[1718391214110,26.1618,141.43,141.38,2.617]
[1718391214492,7.8485,141.43,141.38,15.7021]
[1718391214804,23.5453,141.43,141.38,2.617]
[1718391215005,2.6163,141.42,141.38,2.617]
[1718391215205,23.5453,141.43,141.37,26.1712]
[1718391215414,23.5453,141.43,141.35,0.68]
[1718391215415,70.8499,141.44,141.39,2.6167]
[1718391215718,15.6968,141.43,141.38,15.702]
[1718391215888,15.6968,141.43,141.38,7.8509]
[1718391216208,7.8485,141.43,141.38,7.851]
[1718391216414,55.1536,141.44,141.39,15.701]
[1718391216720,2.6161,141.43,141.39,2.6167]
[1718391217212,47.3056,141.44,141.4,15.6999]
[1718391217411,49.9215,141.44,141.4,2.6166]
[1718391217613,15.3811,141.44,141.43,2.6161]
[1718391217790,15.3811,141.44,141.43,7.8483]
[1718391218299,15.3811,141.44,141.42,23.5454]
[1718391218504,15.3811,141.44,141.42,26.1615]
[1718391218697,31.928,141.47,141.43,7.8483]
[1718391219021,31.928,141.47,141.44,5.2318]
[1718391219221,16.1178,141.48,141.47,2.6153]
[1718391219422,16.1178,141.48,141.45,18.3097]
[1718391219610,16.1178,141.48,141.45,7.8469]
[1718391219817,16.1178,141.48,141.44,26.1582]
[1718391220002,18.733,141.48,141.44,2.6158]
[1718391220327,26.1563,141.46,141.41,2.6164]
[1718391220562,51.5745,141.47,141.42,2.7863]
[1718391220726,2.6155,141.46,141.42,2.7863]
[1718391220920,33.2664,141.47,141.42,15.8677]
[1718391221121,7.8467,141.46,141.42,0.17]
[1718391221356,7.8469,141.46,141.42,0.17]
[1718391221637,2.6157,141.46,141.42,2.7863]
[1718391222600,33.2665,141.47,141.42,5.2325]
[1718391222824,41.1127,141.47,141.42,2.6162]
[1718391223064,2.6155,141.46,141.42,2.6162]
[1718391223329,33.2662,141.47,141.42,7.8485]
[1718391223534,7.8468,141.46,141.41,8.0191]
[1718391223900,41.113,141.47,141.42,7.8489]
[1718391224097,2.6157,141.46,141.41,5.403]
[1718391224307,51.5746,141.47,141.42,7.8489]
[1718391224508,33.2664,141.47,141.42,7.8488]
[1718391224826,25.42,141.47,141.43,2.6161]
[1718391225247,28.0353,141.47,141.42,26.1627]
[1718391225613,33.266,141.47,141.42,26.1627]
[1718391225815,28.0353,141.47,141.43,2.6161]
[1718391226125,25.42,141.47,141.43,7.8483]
[1718391226346,25.42,141.47,141.43,26.1599]
[1718391226716,33.2662,141.47,141.42,26.1619]
[1718391227126,33.2662,141.47,141.43,2.616]
[1718391227127,25.42,141.47,141.43,2.616]
[1718391227324,28.0353,141.47,141.43,2.616]
[1718391227630,28.0354,141.47,141.43,2.616]
[1718391228010,25.42,141.47,141.43,2.616]
[1718391228532,25.42,141.47,141.43,7.8482]
[1718391229613,33.2661,141.47,141.42,26.1622]
[1718391229813,33.2661,141.47,141.42,23.5461]
[1718391230136,33.2661,141.47,141.42,26.1622]
[1718391230336,25.42,141.47,141.43,7.8482]
[1718391230638,41.1123,141.47,141.42,26.1624]
[1718391230841,8.41,141.43,141.42,26.1624]
[1718391231043,8.41,141.43,141.42,26.5024]
[1718391231337,36.2554,141.47,141.43,7.8482]
[1718391231338,33.64,141.47,141.43,7.8482]
[1718391231556,8.41,141.44,141.43,2.6161]
[1718391232016,39.6556,141.48,141.44,13.249]
[1718391232017,16.1178,141.48,141.44,13.249]
[1718391232218,6.6125,141.5,141.46,7.8464]
[1718391232460,8.41,141.47,141.46,18.3087]
[1718391232615,8.41,141.47,141.46,26.3254]
[1718391233016,3.4383025,141.51,141.47,2.6153]
[1718391233226,3.4383025,141.51,141.46,0.17]
[1718391233227,8.41,141.48,141.46,0.17]
[1718391233435,8.41,141.47,141.46,0.17]
[1718391234854,7.8453,141.49,141.46,0.17]
[1718391235151,7.8453,141.49,141.43,26.1606]
[1718391235152,7.8458,141.48,141.43,26.1606]
[1718391235362,26.1525,141.48,141.43,7.848]
[1718391235648,7.8457,141.48,141.44,2.6159]
[1718391235852,0.8236025,141.51,141.44,2.6159]
[1718391236151,27.815,141.49,141.45,2.7857]
[1718391236443,25.2,141.49,141.45,8.0172]
[1718391236656,27.815,141.49,141.45,2.7857]
[1718391237011,25.2,141.49,141.45,15.8644]
[1718391237218,27.815,141.49,141.45,2.7857]
[1718391237415,25.2,141.49,141.45,8.0171]
[1718391237719,25.2,141.49,141.45,26.3273]
[1718391237912,6.0531025,141.51,141.46,18.4788]
[1718391238114,0.8236025,141.51,141.47,26.1533]
[1718391238639,0.8236025,141.51,141.48,7.8452]
[1718391238842,0.8236025,141.51,141.47,26.3228]
[1718391239160,0.8236025,141.51,141.48,2.7852]
[1718391239321,0.8236025,141.51,141.48,8.0155]
[1718391239523,0.8236025,141.51,141.48,0.17]
[1718391239834,0.8236025,141.51,141.49,2.615]
[1718391240232,0.8236025,141.51,141.48,8.0154]
[1718391240448,0.8236025,141.51,141.48,26.3215]
[1718391240622,0.8236025,141.51,141.48,0.17]
[1718391240824,24.3559025,141.51,141.47,0.17]
[1718391241019,2.6148,141.5,141.47,0.17]
[1718391241325,7.8452,141.49,141.45,0.17]
[1718391241539,0.8236025,141.51,141.46,2.6155]
[1718391241540,2.6149,141.5,141.46,2.6155]
[1718391241846,15.6891,141.5,141.45,26.4971]
[1718391242048,7.8446,141.5,141.45,23.8815]
[1718391242355,7.8446,141.5,141.46,2.6155]
[1718391242550,8.6678025,141.51,141.46,26.1554]
[1718391242863,23.5359,141.49,141.44,7.8474]
[1718391243094,2.6151,141.49,141.45,2.6157]
[1718391243253,2.6151,141.49,141.45,7.8472]
[1718391243561,7.8451,141.49,141.45,2.6157]
[1718391243939,7.8451,141.49,141.44,23.543]
[1718391244251,7.8451,141.49,141.44,26.1587]
[1718391244457,26.1493,141.5,141.45,7.8471]
[1718391244757,26.1493,141.5,141.46,2.6155]
[1718391244758,2.6149,141.5,141.46,2.6155]
[1718391244956,7.8446,141.5,141.46,2.6155]
[1718391245153,2.6149,141.5,141.45,23.5416]
[1718391245353,2.6149,141.5,141.46,2.6155]
[1718391245755,2.6149,141.5,141.46,7.8466]
[1718391245950,0.8236025,141.51,141.48,2.615]
[1718391246206,0.8236025,141.51,141.48,2.6151]
[1718391246528,0.8236025,141.51,141.5,26.1482]
[1718391247159,0.8236025,141.51,141.5,7.8444]
[1718391247369,0.8236025,141.51,141.49,26.319]
[1718391248255,0.8236025,141.51,141.49,23.7042]
[1718391248468,0.8236025,141.51,141.5,26.3182]
[1718391248769,0.8236025,141.51,141.5,26.8282]
[1718391249152,0.8236025,141.51,141.5,69.4582]
[1718391249358,24.4571,141.6,141.55,5.2276]
[1718391249557,42.7481,141.6,141.55,7.8414]
[1718391249902,42.7481,141.6,141.55,2.6138]
[1718391249903,2.6131,141.59,141.55,2.6138]
[1718391250054,24.4572,141.6,141.55,7.8415]
[1718391250256,27.0702,141.6,141.55,5.2277]
[1718391250456,42.7482,141.6,141.55,7.8415]
[1718391250765,2.6131,141.59,141.55,2.6138]
[1718391250993,16.6181,141.6,141.56,2.6136]
[1718391251187,16.6181,141.6,141.56,7.841]
[1718391251573,19.231,141.6,141.56,2.6136]
[1718391251769,32.2961,141.6,141.55,7.8412]
[1718391252177,2.6131,141.59,141.54,23.6961]
[1718391252466,15.6815,141.57,141.52,7.8431]
[1718391252858,26.1359,141.57,141.52,2.6144]
[1718391253281,7.841,141.57,141.52,5.2289]
[1718391253587,26.1358,141.57,141.52,7.8433]
[1718391254282,7.841,141.57,141.52,7.8433]
[1718391254484,21.1335,141.54,141.49,2.6149]
[1718391254666,21.1335,141.54,141.45,42.63]
[1718391254667,15.6882,141.51,141.46,2.6155]
[1718391254865,15.6882,141.51,141.43,20.15]
[1718391254866,2.6152,141.48,141.44,2.6159]
[1718391255199,2.615,141.5,141.39,20.15]
[1718391255383,2.615,141.5,141.45,13.0785]
[1718391255700,5.2299,141.5,141.45,2.6157]
[1718391255987,2.6153,141.48,141.43,15.6963]
[1718391256278,2.6153,141.48,141.43,23.5445]
[1718391256481,2.6153,141.48,141.43,26.1604]
[1718391256703,2.6153,141.48,141.44,2.6159]
[1718391256868,51.3506,141.49,141.44,2.6159]
[1718391257194,2.6152,141.48,141.44,2.6159]
[1718391257561,7.8456,141.48,141.43,7.8479]
[1718391257764,7.8456,141.48,141.43,15.6962]
[1718391258062,25.2,141.49,141.43,0.17]
[1718391258290,25.2,141.5,141.46,2.6154]
[1718391258582,25.2,141.5,141.45,18.3094]
[1718391258777,25.2,141.5,141.46,7.8464]
[1718391259081,27.8144,141.53,141.48,5.2303]
[1718391259314,48.7287,141.53,141.48,2.615]
[1718391259501,25.2,141.53,141.49,2.6148]
[1718391259662,25.2,141.53,141.43,0.17]
[1718391259663,27.8143,141.53,141.48,23.5359]
[1718391259990,27.8143,141.53,141.49,2.6149]
[1718391259991,25.2,141.53,141.49,2.6149]
[1718391260159,13.0726,141.52,141.47,2.6153]
[1718391260360,15.6871,141.52,141.47,7.846]
[1718391260599,2.6151,141.49,141.44,13.0793]
[1718391260816,7.8452,141.49,141.44,7.8475]
[1718391261074,7.8452,141.49,141.43,10.6339]
[1718391261075,2.6148,141.5,141.45,26.1569]
[1718391261289,23.5323,141.51,141.46,2.6155]
[1718391261591,23.5336,141.5,141.44,18.3111]
[1718391261764,7.8452,141.49,141.44,15.6953]
[1718391262187,2.6151,141.49,141.45,2.6157]
[1718391262698,7.8452,141.49,141.44,26.1589]
[1718391262991,2.6151,141.49,141.44,26.1589]
[1718391263282,43.5043,141.5,141.45,2.6157]
[1718391263471,40.8894,141.5,141.44,26.1589]
[1718391263676,40.8894,141.5,141.45,2.6157]
[1718391263866,15.6903,141.49,141.43,23.5443]
[1718391264197,26.1504,141.49,141.43,26.1602]
[1718391264492,25.2,141.5,141.42,0.34]
[1718391264493,2.6156,141.46,141.42,0.34]
[1718391264672,25.2,141.5,141.42,8.1887]
[1718391264878,26.1508,141.49,141.44,2.6159]
[1718391265061,7.8453,141.49,141.44,2.6159]
[1718391265256,7.8453,141.49,141.44,7.8476]
[1718391265257,2.615,141.49,141.44,7.8476]
[1718391265462,2.615,141.49,141.44,15.6953]
[1718391265682,33.0447,141.5,141.45,2.6157]
[1718391266365,48.7337,141.5,141.44,26.159]
[1718391266673,7.8459,141.48,141.43,2.616]
[1718391266870,2.6151,141.49,141.44,7.8476]
[1718391267091,2.6151,141.49,141.44,2.6158]
[1718391267266,7.8452,141.49,141.44,2.6158]
[1718391267590,26.1508,141.49,141.44,2.6159]
[1718391267898,27.8149,141.5,141.45,2.6157]
[1718391268071,7.38203428,141.53,141.39,62.78]
[1718391268280,25.2,141.52,141.47,23.5379]
[1718391268467,48.7306,141.52,141.46,23.5394]
[1718391268675,7.844,141.51,141.46,7.8463]
[1718391268891,13.0743,141.5,141.44,23.5427]
[1718391269065,2.6151,141.49,141.44,2.6159]
[1718391269264,2.6149,141.5,141.45,15.6943]
[1718391269482,7.8443,141.51,141.46,7.8466]
[1718391269678,7.8443,141.51,141.46,2.6155]
[1718391269679,15.688,141.51,141.46,2.6155]
[1718391269884,2.6148,141.5,141.45,26.1564]
[1718391270265,23.5318,141.51,141.45,26.1564]
[1718391270507,2.6148,141.5,141.45,26.1564]
[1718391271376,7.8445,141.5,141.45,2.6156]
[1718391271980,2.6148,141.5,141.45,7.847]
[1718391272375,15.6891,141.5,141.45,2.6156]
[1718391272604,26.1484,141.5,141.45,2.6156]
[1718391273280,2.615,141.49,141.44,26.1581]
[1718391273482,26.1486,141.5,141.45,2.6157]
[1718391274289,7.8448,141.5,141.45,2.6157]
[1718391274490,7.8437,141.52,141.46,26.1548]
[1718391274796,2.6148,141.5,141.46,2.6154]
[1718391274983,26.1467,141.51,141.46,2.6155]
[1718391275489,2.6148,141.5,141.45,26.1563]
[1718391275994,26.1467,141.51,141.46,2.6155]
[1718391276176,2.6148,141.5,141.45,26.1563]
[1718391276383,7.8445,141.5,141.45,7.8469]
[1718391276789,23.5321,141.51,141.45,23.5414]
[1718391276985,2.6148,141.5,141.45,23.5414]
[1718391277189,7.8444,141.5,141.45,7.8469]
[1718391277374,7.8445,141.5,141.45,7.8469]
[1718391277575,2.6148,141.5,141.45,7.8469]
[1718391278001,2.6148,141.5,141.45,15.6941]
[1718391278202,7.8445,141.5,141.45,7.8469]
[1718391278401,18.3026,141.51,141.45,7.8469]
[1718391278402,26.1468,141.51,141.46,2.6155]
[1718391279099,15.6881,141.51,141.46,2.6155]
[1718391279809,2.6148,141.5,141.45,26.1568]
[1718391279979,7.8445,141.5,141.45,7.8468]
[1718391280179,2.6148,141.5,141.45,15.694]
[1718391280452,25.2,141.53,141.46,18.3087]
[1718391280453,5.2291,141.52,141.46,18.3087]
[1718391280623,7.844,141.51,141.46,7.8464]
[1718391280790,26.1467,141.51,141.46,2.6155]
[1718391280998,2.6148,141.5,141.45,26.1562]
[1718391281201,26.1467,141.51,141.46,2.6155]
[1718391281520,2.6152,141.48,141.43,2.6159]
[1718391281813,23.536,141.49,141.43,23.5444]
[1718391282023,2.6151,141.49,141.44,15.6954]
[1718391282180,2.6151,141.49,141.44,2.6158]
[1718391282181,15.6903,141.49,141.44,2.6158]
[1718391282502,2.6152,141.48,141.44,2.6159]
[1718391282704,18.3053,141.49,141.43,5.232]
[1718391283003,26.1506,141.49,141.44,2.6159]
[1718391283199,2.6152,141.48,141.43,26.1606]
[1718391283374,26.1506,141.49,141.43,23.5447]
[1718391283577,26.1506,141.49,141.44,2.6158]
[1718391283895,2.6152,141.48,141.43,26.1606]
[1718391284413,23.5355,141.49,141.44,2.6159]
[1718391284696,23.5387,141.47,141.42,2.6162]
[1718391284898,7.8463,141.47,141.42,2.6162]
[1718391285101,2.6155,141.46,141.41,26.1638]
[1718391285317,2.6154,141.47,141.42,26.1627]
[1718391285597,42.482,141.48,141.43,2.6161]
[1718391285787,39.8667,141.48,141.42,26.1628]
[1718391285976,2.6154,141.47,141.42,26.1628]
[1718391286181,7.8462,141.47,141.42,7.8487]
[1718391286491,7.8467,141.46,141.41,7.8492]
[1718391286803,7.8467,141.46,141.41,2.6163]
[1718391287009,2.6156,141.46,141.41,7.8492]
[1718391287210,15.6936,141.46,141.41,2.6163]
[1718391287509,15.6936,141.46,141.4,23.5492]
[1718391287510,7.8474,141.45,141.4,7.8497]
[1718391288011,2.6158,141.45,141.4,15.6997]
[1718391288382,7.8473,141.45,141.4,7.8497]
[1718391288574,5.2315,141.45,141.4,2.6165]
[1718391289117,26.1578,141.45,141.4,2.6165]
[1718391289294,2.6159,141.44,141.39,26.1672]
[1718391289604,7.8479,141.44,141.39,2.6167]
[1718391289813,25.54,141.47,141.36,13.887]
[1718391289814,25.54,141.47,141.37,5.2344]
[1718391290012,2.6163,141.42,141.37,7.8515]
[1718391290803,26.162,141.43,141.37,15.7031]
[1718391290989,26.162,141.43,141.38,2.617]
[1718391291185,2.6162,141.43,141.38,7.851]
[1718391291381,2.6156,141.46,141.41,2.6164]
[1718391291611,48.7392,141.47,141.41,23.548]
[1718391291787,13.0779,141.46,141.4,23.5494]
[1718391292016,2.6158,141.45,141.4,7.8496]
[1718391292207,26.156,141.46,141.41,2.6164]
[1718391292393,7.8467,141.46,141.41,2.6164]
[1718391292701,2.6157,141.45,141.4,26.1662]
[1718391292886,7.8472,141.45,141.4,7.8496]
[1718391293079,2.6157,141.45,141.4,7.8496]
[1718391293534,7.8472,141.45,141.4,2.6165]
[1718391293802,26.1601,141.44,141.38,13.085]
[1718391293990,26.1601,141.44,141.37,0.17]
[1718391293991,7.8492,141.42,141.37,2.6172]
[1718391294176,2.6165,141.41,141.36,7.8519]
[1718391294396,10.4648,141.43,141.36,7.8522]
[1718391294599,2.6163,141.42,141.37,7.8514]
[1718391294795,15.6978,141.42,141.37,2.6171]
[1718391295321,7.8489,141.42,141.37,7.8515]
[1718391295813,7.8489,141.42,141.37,2.6171]
[1718391296417,7.8489,141.42,141.37,7.8515]
[1718391296713,2.6163,141.42,141.37,15.7032]
[1718391297413,2.6165,141.41,141.36,2.6173]
[1718391297710,26.1638,141.42,141.37,2.6172]
[1718391298014,7.8491,141.42,141.37,2.6172]
[1718391298511,7.8486,141.43,141.38,2.617]
[1718391299110,33.0481,141.44,141.39,2.6168]
[1718391299315,5.2316,141.45,141.36,0.17]
[1718391299494,23.5423,141.45,141.39,15.7009]
[1718391299697,7.8479,141.44,141.39,2.6168]
[1718391300330,32.58473093,141.47,141.36,0.68]
[1718391300489,5.2326,141.42,141.36,23.8954]
[1718391300691,26.1636,141.42,141.37,2.6172]
[1718391300995,26.1636,141.42,141.36,26.1726]
[1718391300996,2.6165,141.41,141.36,26.1726]
[1718391301192,25.2,141.44,141.36,0.17]
[1718391301391,7.8485,141.43,141.38,2.617]
[1718391301610,15.6969,141.43,141.38,2.617]
[1718391301822,2.6163,141.42,141.37,7.8515]
[1718391302035,7.8489,141.42,141.37,7.8515]
[1718391302232,7.8489,141.42,141.37,2.6171]
[1718391302533,2.6165,141.41,141.36,26.5127]
[1718391302712,15.6991,141.41,141.36,2.6172]
[1718391302914,7.8496,141.41,141.36,2.6172]
[1718391303329,15.6991,141.41,141.36,2.6172]
[1718391303712,2.6165,141.41,141.36,7.8519]
[1718391304330,7.8495,141.41,141.36,7.8519]
[1718391304524,16.4042,141.43,141.34,23.5592]
[1718391304729,26.1676,141.4,141.35,2.6175]
[1718391304938,2.6169,141.39,141.34,7.8532]
[1718391305250,23.5538,141.38,141.32,23.5631]
[1718391305530,2.6171,141.38,141.33,15.7077]
[1718391305737,7.8512,141.38,141.33,7.8538]
[1718391305922,2.6174,141.36,141.31,27.1039]
[1718391306123,16.4042,141.37,141.32,7.8542]
[1718391306333,16.4042,141.37,141.29,13.887]
[1718391306558,26.1752,141.36,141.31,2.6183]
[1718391306718,2.6176,141.35,141.3,7.8551]
[1718391307032,7.8536,141.34,141.29,7.8561]
[1718391307215,2.6179,141.34,141.29,7.8561]
[1718391307417,2.6179,141.34,141.29,15.7122]
[1718391307727,25.2,141.35,141.31,2.6182]
[1718391307935,25.2,141.35,141.31,2.6183]
[1718391308916,25.2,141.35,141.31,7.8549]
[1718391309239,16.4042,141.37,141.32,5.2362]
[1718391309462,25.2,141.4,141.36,2.6173]
[1718391309748,25.2,141.4,141.37,2.6171]
[1718391310050,25.2,141.4,141.36,26.1729]
[1718391310254,25.2,141.4,141.36,2.6172]
[1718391310631,32.0052,141.41,141.38,5.234]
[1718391310632,16.306,141.41,141.38,5.234]
[1718391310819,16.306,141.41,141.38,2.6169]
[1718391311025,16.306,141.41,141.39,2.6168]
[1718391311224,25.2,141.43,141.38,23.5533]
[1718391311429,40.8968,141.43,141.38,2.617]
[1718391311745,2.6163,141.42,141.37,26.1713]
[1718391312340,13.0816,141.42,141.37,2.6171]
[1718391312648,15.698,141.42,141.37,2.6171]
[1718391312851,7.8497,141.41,141.35,0.17]
[1718391313193,7.8514,141.38,141.32,37.45]
[1718391313350,7.8514,141.38,141.33,2.6179]
[1718391313549,2.6171,141.38,141.33,7.8538]
[1718391313716,23.5529,141.39,141.33,26.1794]
[1718391313717,26.1699,141.39,141.33,26.1794]
[1718391314043,7.8502,141.4,141.35,2.6175]
[1718391314246,7.8502,141.4,141.35,7.8527]
[1718391314447,2.6168,141.4,141.35,15.7055]
[1718391314644,2.6168,141.4,141.35,7.8527]
[1718391314850,48.7492,141.41,141.35,23.5581]
[1718391315022,27.8165,141.41,141.36,7.8519]
[1718391315223,27.8165,141.41,141.36,26.1735]
[1718391315445,33.0495,141.41,141.36,7.8518]
[1718391315819,25.2,141.41,141.36,5.2346]
[1718391316034,2.6175,141.36,141.32,13.887]
[1718391316230,25.2,141.41,141.32,13.887]
[1718391316231,26.1714,141.38,141.33,2.6179]
[1718391316431,2.6171,141.38,141.33,15.7077]
[1718391316627,23.5521,141.39,141.33,23.5608]
[1718391316929,23.5535,141.38,141.32,13.0902]
[1718391317155,7.8507,141.39,141.34,2.6177]
[1718391317334,15.7013,141.39,141.34,2.6177]
[1718391317548,2.617,141.38,141.33,26.179]
[1718391317746,23.5519,141.39,141.33,5.2358]
[1718391318044,2.617,141.39,141.34,15.7064]
[1718391318348,2.6168,141.39,141.34,26.1773]
[1718391318551,2.6168,141.39,141.34,7.853]
[1718391318732,5.2349,141.36,141.29,13.887]
[1718391319058,5.2349,141.36,141.3,2.6185]
[1718391319059,15.7058,141.35,141.3,2.6185]
[1718391319229,7.853,141.35,141.3,2.6184]
[1718391319441,7.853,141.35,141.3,7.8554]
[1718391319832,26.1752,141.36,141.31,2.6183]
[1718391320029,2.6176,141.35,141.3,26.1848]
[1718391320233,26.1752,141.36,141.31,2.6183]
[1718391320755,2.6176,141.35,141.3,26.1847]
[1718391320958,7.8529,141.35,141.3,7.8554]
[1718391321653,13.0881,141.35,141.29,5.2372]
[1718391321860,15.0862,141.38,141.24,257.5]
[1718391321861,6.0671,141.33,141.24,257.5]
[1718391322631,29.6296,141.33,141.27,13.0952]
[1718391322945,2.6182,141.32,141.27,7.8569]
[1718391323129,7.8545,141.32,141.27,2.6189]
[1718391323329,13.9212,141.33,141.28,2.6188]
[1718391323529,7.8552,141.31,141.25,23.7441]
[1718391323747,7.8552,141.31,141.26,2.7892]
[1718391323949,2.6184,141.31,141.26,2.6192]
[1718391324125,10.4735,141.31,141.25,20.9548]
[1718391324338,15.7103,141.31,141.26,2.6192]
[1718391324752,7.8552,141.31,141.26,2.6192]
[1718391324959,15.3791,141.31,141.23,10.4787]
[1718391325274,15.3791,141.31,141.19,42.47]
[1718391325275,7.8568,141.28,141.22,23.5792]
[1718391325554,5.2379,141.28,141.22,5.2397]
[1718391325759,2.6193,141.26,141.21,2.6201]
[1718391326133,7.8575,141.27,141.22,2.62]
[1718391326347,2.6192,141.27,141.22,7.8599]
[1718391326659,51.3899,141.28,141.22,10.48]
[1718391326862,2.6191,141.27,141.22,7.8599]
[1718391327027,2.6193,141.26,141.21,2.6201]
[1718391327233,25.2,141.28,141.17,49.3496025]
[1718391327234,36.8835,141.28,141.17,49.3496025]
[1718391327456,14.3791,141.31,141.26,2.6192]
[1718391327696,14.3791,141.31,141.26,7.8576]
[1718391327862,14.3791,141.31,141.17,62.7723232]
[1718391327863,39.5791,141.31,141.17,6.8796025]
[1718391328032,7.8581,141.26,141.2,5.2406]
[1718391328229,25.2,141.28,141.22,10.4794]
[1718391328447,7.8569,141.28,141.23,2.6197]
[1718391328663,2.619,141.28,141.23,7.8593]
[1718391328961,7.8568,141.28,141.23,2.6197]
[1718391329278,25.2,141.28,141.17,6.8796025]
[1718391329775,2.6189,141.28,141.23,7.8593]
[1718391330065,2.6191,141.27,141.22,26.1988]
[1718391330260,23.5704,141.28,141.22,26.1988]
[1718391330556,23.5704,141.28,141.23,2.6198]
[1718391330557,13.0946,141.28,141.23,2.6198]
[1718391330754,26.1892,141.28,141.23,2.6198]
[1718391330955,5.2377,141.29,141.21,0.17]
[1718391331152,37.9452,141.31,141.25,13.0969]
[1718391331354,37.9452,141.31,141.22,0.17]
[1718391331355,14.3791,141.31,141.23,0.17]
[1718391331543,14.3791,141.31,141.22,0.17]
[1718391331544,2.6191,141.27,141.22,26.3689]
[1718391331750,7.8569,141.28,141.23,2.6198]
[1718391332170,26.188,141.29,141.24,2.6196]
[1718391332478,23.5685,141.29,141.23,23.5775]
[1718391332701,2.6191,141.27,141.22,8.0296]
[1718391332851,2.619,141.28,141.24,2.6196]
[1718391333052,2.619,141.28,141.23,23.5782]
[1718391333269,13.0928,141.3,141.24,26.5352]
[1718391333461,7.8562,141.29,141.24,8.0285]
[1718391333657,7.8562,141.29,141.24,15.8874]
[1718391333658,2.6187,141.29,141.24,15.8874]
[1718391333970,2.6191,141.27,141.22,7.8598]
[1718391334161,2.6194,141.25,141.2,23.5824]
[1718391334365,7.8586,141.25,141.2,7.861]
[1718391334668,26.1949,141.25,141.2,2.6203]
[1718391334975,2.6198,141.23,141.18,15.724]
[1718391335276,22.9839,141.25,141.2,7.861]
[1718391335585,2.6196,141.24,141.2,2.6203]
[1718391335754,2.6196,141.24,141.19,26.205]
[1718391336188,2.6196,141.24,141.19,23.5846]
[1718391336478,2.6196,141.24,141.2,2.6203]
[1718391336780,41.3203,141.25,141.2,2.6203]
[1718391336983,2.6196,141.24,141.19,23.5846]
[1718391337308,17.7449,141.25,141.21,2.6202]
[1718391337456,17.7449,141.25,141.2,26.2034]
[1718391337655,29.9911,141.26,141.17,0.8236025]
[1718391337656,6.4168,141.26,141.19,23.5845]
[1718391337962,15.5522,141.28,141.23,23.5779]
[1718391338207,15.5522,141.28,141.23,23.5776]
[1718391338376,15.5522,141.28,141.21,0.17]
[1718391338698,15.5522,141.28,141.25,7.8581]
[1718391338893,15.5522,141.28,141.24,26.1949]
[1718391339078,18.1711,141.28,141.24,2.6195]
[1718391339578,15.5522,141.28,141.24,26.1959]
[1718391339780,15.5522,141.28,141.24,7.8586]
[1718391340189,15.5522,141.28,141.24,15.7175]
[1718391340366,15.5522,141.28,141.25,15.7166]
[1718391340563,15.5522,141.28,141.25,7.8583]
[1718391341069,15.5522,141.28,141.25,15.7166]
[1718391341558,15.5522,141.28,141.25,7.8583]
[1718391341757,15.5522,141.28,141.25,15.7166]
[1718391342287,15.5522,141.28,141.26,2.6192]
[1718391342468,15.5522,141.28,141.25,26.1943]
[1718391342774,15.5522,141.28,141.22,0.17]